[Event "*** Titled Tuesday Blitz"]
[Site "Chess.com"]
[Date "2021.03.02"]
[Round "8"]
[White "shrek4life02"]
[Black "mishanick"]
[Result "0-1"]
[WhiteElo "2762"]
[BlackElo "3027"]
[TimeControl "180+1"]
[EndTime "11:29:48 PST"]
[Termination "mishanick won by checkmate"]

1. d4 {[%clk 0:02:59.8]} 1... Nf6 {[%clk 0:03:00]} 2. Bf4 {[%clk 0:03:00]} 2...
e6 {[%clk 0:02:58.6]} 3. Nf3 {[%clk 0:03:00.2]} 3... b6 {[%clk 0:02:57.1]} 4. e3
{[%clk 0:03:00.7]} 4... Bb7 {[%clk 0:02:57.6]} 5. Be2 {[%clk 0:03:00.7]} 5... c5
{[%clk 0:02:58]} 6. h3 {[%clk 0:03:00.9]} 6... Be7 {[%clk 0:02:58.2]} 7. O-O
{[%clk 0:03:00.8]} 7... O-O {[%clk 0:02:58.6]} 8. c3 {[%clk 0:03:01.3]} 8...
cxd4 {[%clk 0:02:58]} 9. exd4 {[%clk 0:03:01.8]} 9... d6 {[%clk 0:02:58.5]} 10.
Nbd2 {[%clk 0:03:02.1]} 10... Nbd7 {[%clk 0:02:58.9]} 11. Bh2 {[%clk 0:03:01.8]}
11... Re8 {[%clk 0:02:58.9]} 12. a4 {[%clk 0:03:02.3]} 12... a6 {[%clk
0:02:58.1]} 13. Nc4 {[%clk 0:03:01.4]} 13... Nf8 {[%clk 0:02:56.8]} 14. a5
{[%clk 0:02:57.2]} 14... b5 {[%clk 0:02:56.8]} 15. Nb6 {[%clk 0:02:57.6]} 15...
Rb8 {[%clk 0:02:56.8]} 16. b3 {[%clk 0:02:53.4]} 16... N8d7 {[%clk 0:02:48.5]}
17. Nxd7 {[%clk 0:02:53.4]} 17... Qxd7 {[%clk 0:02:48.5]} 18. c4 {[%clk
0:02:53.8]} 18... bxc4 {[%clk 0:02:47.9]} 19. bxc4 {[%clk 0:02:54.7]} 19... Rec8
{[%clk 0:02:34.7]} 20. Rb1 {[%clk 0:02:36.1]} 20... Be4 {[%clk 0:02:33.9]} 21.
Rxb8 {[%clk 0:02:35.6]} 21... Rxb8 {[%clk 0:02:34.8]} 22. Bd3 {[%clk 0:02:34.2]}
22... Qc6 {[%clk 0:02:21.7]} 23. Qe2 {[%clk 0:02:30.1]} 23... Bxd3 {[%clk
0:02:01.4]} 24. Qxd3 {[%clk 0:02:31]} 24... Rc8 {[%clk 0:02:00.1]} 25. Rc1
{[%clk 0:02:26.3]} 25... Qa4 {[%clk 0:01:59.7]} 26. c5 {[%clk 0:01:59.2]} 26...
Qxa5 {[%clk 0:01:53.5]} 27. c6 {[%clk 0:01:59.6]} 27... Nd5 {[%clk 0:01:52.3]}
28. Nd2 {[%clk 0:01:53]} 28... Nb4 {[%clk 0:01:45.1]} 29. Qf3 {[%clk 0:01:46.8]}
29... Qb6 {[%clk 0:01:30]} 30. d5 {[%clk 0:01:11.9]} 30... Nxd5 {[%clk
0:01:20.9]} 31. Qb3 {[%clk 0:01:02.5]} 31... Rxc6 {[%clk 0:01:16.7]} 32. Rxc6
{[%clk 0:00:59.5]} 32... Qxc6 {[%clk 0:01:17.6]} 33. Qb8+ {[%clk 0:01:00.3]}
33... Bf8 {[%clk 0:01:17.1]} 34. Bg3 {[%clk 0:01:00.6]} 34... e5 {[%clk
0:01:00.6]} 35. Kh2 {[%clk 0:00:58.8]} 35... a5 {[%clk 0:00:56.3]} 36. Qa7
{[%clk 0:00:43.7]} 36... a4 {[%clk 0:00:55.6]} 37. Ne4 {[%clk 0:00:42.1]} 37...
h6 {[%clk 0:00:55.1]} 38. Bh4 {[%clk 0:00:40.8]} 38... Nf4 {[%clk 0:00:53.5]}
39. f3 {[%clk 0:00:35.4]} 39... d5 {[%clk 0:00:53.3]} 40. Nf2 {[%clk 0:00:28.4]}
40... a3 {[%clk 0:00:51.1]} 41. Ng4 {[%clk 0:00:21.3]} 41... Qc2 {[%clk
0:00:44.3]} 42. Bf2 {[%clk 0:00:16]} 42... Qb2 {[%clk 0:00:35.7]} 43. Qa8 {[%clk
0:00:11.9]} 43... a2 {[%clk 0:00:35.1]} 44. Bc5 {[%clk 0:00:12.1]} 44... Qxg2#
{[%clk 0:00:34.9]} 0-1

[Event "*** Titled Tuesday Blitz"]
[Site "Chess.com"]
[Date "2021.03.02"]
[Round "8"]
[White "MaxLeto"]
[Black "MillyNeuf"]
[Result "1-0"]
[WhiteElo "2426"]
[BlackElo "2278"]
[TimeControl "180+1"]
[EndTime "11:29:48 PST"]
[Termination "MaxLeto won on time"]

1. h4 {[%clk 0:03:00.1]} 1... d5 {[%clk 0:02:57]} 2. h5 {[%clk 0:03:01]} 2... c5
{[%clk 0:02:54.5]} 3. c3 {[%clk 0:02:58.1]} 3... Nc6 {[%clk 0:02:54]} 4. d4
{[%clk 0:02:58.2]} 4... cxd4 {[%clk 0:02:54.1]} 5. cxd4 {[%clk 0:02:59.1]} 5...
h6 {[%clk 0:02:53.8]} 6. Nc3 {[%clk 0:02:56.4]} 6... Nf6 {[%clk 0:02:48.5]} 7.
e3 {[%clk 0:02:51]} 7... Bf5 {[%clk 0:02:47.8]} 8. Bd3 {[%clk 0:02:37.8]} 8...
Bxd3 {[%clk 0:02:47]} 9. Qxd3 {[%clk 0:02:38.7]} 9... Rc8 {[%clk 0:02:45.7]} 10.
Nge2 {[%clk 0:02:29.5]} 10... e6 {[%clk 0:02:39.1]} 11. Bd2 {[%clk 0:02:23.3]}
11... a6 {[%clk 0:02:38]} 12. f3 {[%clk 0:01:59.1]} 12... b5 {[%clk 0:02:21.5]}
13. g4 {[%clk 0:01:53.5]} 13... Be7 {[%clk 0:01:50.1]} 14. Kf2 {[%clk
0:01:48.4]} 14... Nb4 {[%clk 0:01:35.8]} 15. Qb1 {[%clk 0:01:46.7]} 15... Qb6
{[%clk 0:01:30]} 16. Rg1 {[%clk 0:01:41.1]} 16... Nd7 {[%clk 0:01:24.3]} 17. a3
{[%clk 0:01:27.2]} 17... Nc6 {[%clk 0:01:20.9]} 18. Nf4 {[%clk 0:01:07.1]} 18...
Na5 {[%clk 0:01:16.5]} 19. b3 {[%clk 0:01:04.1]} 19... Nc6 {[%clk 0:01:10]} 20.
Nd3 {[%clk 0:00:47.4]} 20... Nxd4 {[%clk 0:00:57.8]} 21. exd4 {[%clk 0:00:45.6]}
21... Qxd4+ {[%clk 0:00:57.8]} 22. Be3 {[%clk 0:00:39]} 22... Bh4+ {[%clk
0:00:30.2]} 23. Ke2 {[%clk 0:00:37.3]} 23... Qf6 {[%clk 0:00:12.1]} 24. Nd1
{[%clk 0:00:33.8]} 24... d4 {[%clk 0:00:10.3]} 25. Bd2 {[%clk 0:00:30.3]} 25...
Ne5 {[%clk 0:00:08.2]} 26. Nxe5 {[%clk 0:00:27.1]} 26... Qxe5+ {[%clk
0:00:09.1]} 27. Kf1 {[%clk 0:00:16.5]} 27... O-O {[%clk 0:00:05.2]} 28. Qe4
{[%clk 0:00:14.7]} 28... Qxe4 {[%clk 0:00:03.6]} 29. fxe4 {[%clk 0:00:14.8]}
29... Rc2 {[%clk 0:00:04.5]} 30. Rg2 {[%clk 0:00:10]} 30... Rfc8 {[%clk
0:00:02.1]} 31. Ke2 {[%clk 0:00:10.4]} 31... Bg5 {[%clk 0:00:01.5]} 32. Kd3
{[%clk 0:00:11.1]} 1-0

[Event "*** Titled Tuesday Blitz"]
[Site "Chess.com"]
[Date "2021.03.02"]
[Round "8"]
[White "exoticprincess"]
[Black "olksuna"]
[Result "1-0"]
[WhiteElo "2981"]
[BlackElo "2681"]
[TimeControl "180+1"]
[EndTime "11:29:49 PST"]
[Termination "exoticprincess won on time"]

1. d4 {[%clk 0:03:00.9]} 1... Nf6 {[%clk 0:02:59.6]} 2. Nc3 {[%clk 0:02:44.4]}
2... d5 {[%clk 0:02:56.5]} 3. Bf4 {[%clk 0:02:38.7]} 3... a6 {[%clk 0:02:55.6]}
4. e3 {[%clk 0:02:38.2]} 4... e6 {[%clk 0:02:50.6]} 5. a3 {[%clk 0:02:35.2]}
5... c5 {[%clk 0:02:50.3]} 6. h3 {[%clk 0:02:35.2]} 6... Nc6 {[%clk 0:02:50]} 7.
Nf3 {[%clk 0:02:35.1]} 7... b5 {[%clk 0:02:49.9]} 8. Bd3 {[%clk 0:02:33.1]} 8...
Bb7 {[%clk 0:02:47.8]} 9. O-O {[%clk 0:02:32.6]} 9... Be7 {[%clk 0:02:44.6]} 10.
dxc5 {[%clk 0:02:30.6]} 10... Bxc5 {[%clk 0:02:42.3]} 11. e4 {[%clk 0:02:31.1]}
11... dxe4 {[%clk 0:02:28.8]} 12. Nxe4 {[%clk 0:02:32]} 12... Be7 {[%clk
0:02:26.7]} 13. Qe2 {[%clk 0:02:19.7]} 13... O-O {[%clk 0:02:21.5]} 14. Rfd1
{[%clk 0:02:13.5]} 14... Nd5 {[%clk 0:02:15.8]} 15. Bg3 {[%clk 0:02:02.8]} 15...
Qb6 {[%clk 0:02:10.7]} 16. Nd6 {[%clk 0:01:49.7]} 16... Bxd6 {[%clk 0:01:48.6]}
17. Bxd6 {[%clk 0:01:49]} 17... Nd4 {[%clk 0:01:33.4]} 18. Bxh7+ {[%clk
0:00:33.9]} 18... Kxh7 {[%clk 0:01:32.7]} 19. Ng5+ {[%clk 0:00:33.9]} 19... Kg8
{[%clk 0:01:20.7]} 20. Qd3 {[%clk 0:00:25.6]} 20... f5 {[%clk 0:00:54.5]} 21.
Bxf8 {[%clk 0:00:19.7]} 21... Nf4 {[%clk 0:00:54.4]} 22. Qe3 {[%clk 0:00:16]}
22... Rxf8 {[%clk 0:00:37.1]} 23. Kh2 {[%clk 0:00:12.9]} 23... Qc6 {[%clk
0:00:27]} 24. f3 {[%clk 0:00:10.2]} 24... Nxc2 {[%clk 0:00:10.8]} 25. Qxf4
{[%clk 0:00:09.9]} 25... Nxa1 {[%clk 0:00:10.7]} 26. Qh4 {[%clk 0:00:09.1]}
26... Qc7+ {[%clk 0:00:07.7]} 27. Kh1 {[%clk 0:00:09.2]} 27... g6 {[%clk
0:00:04.2]} 28. Nxe6 {[%clk 0:00:09.1]} 28... Qc2 {[%clk 0:00:03.1]} 29. Rd7
{[%clk 0:00:08.5]} 29... Qc1+ {[%clk 0:00:02]} 30. Kh2 {[%clk 0:00:08.7]} 30...
Rf7 {[%clk 0:00:02.6]} 31. Rd8+ {[%clk 0:00:08.5]} 1-0

[Event "*** Titled Tuesday Blitz"]
[Site "Chess.com"]
[Date "2021.03.02"]
[Round "8"]
[White "MalyDominator"]
[Black "Chernov_Mikhail"]
[Result "0-1"]
[WhiteElo "2479"]
[BlackElo "2371"]
[TimeControl "180+1"]
[EndTime "11:29:49 PST"]
[Termination "Chernov_Mikhail won on time"]

1. e4 {[%clk 0:03:00.9]} 1... c5 {[%clk 0:02:59.3]} 2. Nf3 {[%clk 0:03:01.1]}
2... Nc6 {[%clk 0:02:59.8]} 3. d4 {[%clk 0:03:00.4]} 3... cxd4 {[%clk
0:03:00.7]} 4. Nxd4 {[%clk 0:03:00.7]} 4... Nf6 {[%clk 0:03:01.4]} 5. Nc3 {[%clk
0:03:00.6]} 5... d6 {[%clk 0:03:02]} 6. Bg5 {[%clk 0:03:00.1]} 6... e6 {[%clk
0:03:02.3]} 7. Qd2 {[%clk 0:03:00.5]} 7... a6 {[%clk 0:03:02.9]} 8. O-O-O {[%clk
0:03:00.8]} 8... Bd7 {[%clk 0:03:03.4]} 9. f4 {[%clk 0:03:01.1]} 9... b5 {[%clk
0:03:03.8]} 10. Bxf6 {[%clk 0:03:01.1]} 10... gxf6 {[%clk 0:03:03.5]} 11. Kb1
{[%clk 0:03:01.4]} 11... Qb6 {[%clk 0:03:00.4]} 12. Nce2 {[%clk 0:03:01]} 12...
Qc5 {[%clk 0:02:44.9]} 13. h4 {[%clk 0:02:56.9]} 13... h5 {[%clk 0:02:43.6]} 14.
Rh3 {[%clk 0:02:55.5]} 14... Nxd4 {[%clk 0:02:38.1]} 15. Nxd4 {[%clk 0:02:55.1]}
15... b4 {[%clk 0:02:37.9]} 16. Re3 {[%clk 0:02:44.1]} 16... a5 {[%clk
0:02:23.5]} 17. Nf3 {[%clk 0:02:39.1]} 17... a4 {[%clk 0:02:16.9]} 18. e5 {[%clk
0:02:38.7]} 18... fxe5 {[%clk 0:02:14]} 19. Nxe5 {[%clk 0:02:33.6]} 19... a3
{[%clk 0:01:57.3]} 20. Bc4 {[%clk 0:01:20.3]} 20... Bb5 {[%clk 0:01:22.8]} 21.
Bb3 {[%clk 0:00:18.2]} 21... dxe5 {[%clk 0:01:03]} 22. Rxe5 {[%clk 0:00:19.1]}
22... Qb6 {[%clk 0:01:02.4]} 23. f5 {[%clk 0:00:14.5]} 23... Bg7 {[%clk
0:00:58.1]} 24. fxe6 {[%clk 0:00:10.7]} 24... Bxe5 {[%clk 0:00:55.8]} 25. exf7+
{[%clk 0:00:07.4]} 25... Kf8 {[%clk 0:00:56.1]} 26. Qd5 {[%clk 0:00:07]} 26...
Qb8 {[%clk 0:00:34.8]} 27. Qe6 {[%clk 0:00:04.2]} 27... Ra6 {[%clk 0:00:18.7]}
28. Qf5 {[%clk 0:00:03.3]} 28... Rd6 {[%clk 0:00:13.7]} 29. Re1 {[%clk
0:00:02.3]} 29... Bxb2 {[%clk 0:00:07.6]} 0-1

[Event "*** Titled Tuesday Blitz"]
[Site "Chess.com"]
[Date "2021.03.02"]
[Round "8"]
[White "beto-betun"]
[Black "Fortitudine"]
[Result "0-1"]
[WhiteElo "2203"]
[BlackElo "2323"]
[TimeControl "180+1"]
[EndTime "11:29:50 PST"]
[Termination "Fortitudine won by resignation"]

1. d4 {[%clk 0:03:00.9]} 1... Nf6 {[%clk 0:02:59.3]} 2. Nf3 {[%clk 0:03:00.2]}
2... c5 {[%clk 0:02:58.3]} 3. g3 {[%clk 0:02:56.2]} 3... g6 {[%clk 0:02:53.5]}
4. Bg2 {[%clk 0:02:55.8]} 4... Bg7 {[%clk 0:02:53.8]} 5. O-O {[%clk 0:02:56]}
5... O-O {[%clk 0:02:54.1]} 6. c4 {[%clk 0:02:56]} 6... cxd4 {[%clk 0:02:53.7]}
7. Nxd4 {[%clk 0:02:56.9]} 7... Nc6 {[%clk 0:02:54]} 8. Nc3 {[%clk 0:02:52.7]}
8... d6 {[%clk 0:02:54.4]} 9. h3 {[%clk 0:02:50.9]} 9... Bd7 {[%clk 0:02:52.2]}
10. Be3 {[%clk 0:02:48.3]} 10... Rc8 {[%clk 0:02:42.9]} 11. b3 {[%clk
0:02:41.6]} 11... b6 {[%clk 0:02:37.4]} 12. Rc1 {[%clk 0:02:40.3]} 12... Nxd4
{[%clk 0:02:10.7]} 13. Bxd4 {[%clk 0:02:39.8]} 13... Bc6 {[%clk 0:02:05.1]} 14.
Nd5 {[%clk 0:02:22.8]} 14... Bxd5 {[%clk 0:01:17.3]} 15. cxd5 {[%clk 0:02:17.7]}
15... Rxc1 {[%clk 0:01:12.1]} 16. Qxc1 {[%clk 0:02:18.6]} 16... Qc8 {[%clk
0:01:09]} 17. Qd2 {[%clk 0:02:12.4]} 17... Qf5 {[%clk 0:00:57.1]} 18. g4 {[%clk
0:01:50.7]} 18... Qd7 {[%clk 0:00:56.7]} 19. e4 {[%clk 0:01:43.3]} 19... h5
{[%clk 0:00:55.9]} 20. g5 {[%clk 0:01:33.2]} 20... Nh7 {[%clk 0:00:50.7]} 21.
Be3 {[%clk 0:01:19.4]} 21... Rc8 {[%clk 0:00:47.8]} 22. Rc1 {[%clk 0:01:19]}
22... f6 {[%clk 0:00:30.3]} 23. h4 {[%clk 0:01:03.4]} 23... fxg5 {[%clk
0:00:26]} 24. hxg5 {[%clk 0:01:04.3]} 24... Nf8 {[%clk 0:00:21.3]} 25. Kh2
{[%clk 0:00:55.2]} 25... Rxc1 {[%clk 0:00:19.2]} 26. Qxc1 {[%clk 0:00:54.4]}
26... Qg4 {[%clk 0:00:16.6]} 27. f3 {[%clk 0:00:24.8]} 27... Qd7 {[%clk
0:00:13.1]} 28. Qc6 {[%clk 0:00:22.8]} 28... Be5+ {[%clk 0:00:13.4]} 29. Kg1
{[%clk 0:00:22.2]} 29... Kf7 {[%clk 0:00:11.4]} 30. f4 {[%clk 0:00:19.4]} 30...
Bg7 {[%clk 0:00:10.8]} 31. Kh2 {[%clk 0:00:17.4]} 31... Qg4 {[%clk 0:00:09.7]}
32. Qc2 {[%clk 0:00:13.5]} 32... h4 {[%clk 0:00:10]} 33. Bh3 {[%clk 0:00:10.7]}
33... Qg3+ {[%clk 0:00:10]} 34. Kh1 {[%clk 0:00:09.1]} 34... Qxh3+ {[%clk
0:00:10.4]} 35. Kg1 {[%clk 0:00:09.6]} 35... Qxe3+ {[%clk 0:00:10.9]} 0-1

[Event "*** Titled Tuesday Blitz"]
[Site "Chess.com"]
[Date "2021.03.02"]
[Round "8"]
[White "Piacramling"]
[Black "guillembaches"]
[Result "1-0"]
[WhiteElo "2344"]
[BlackElo "2450"]
[TimeControl "180+1"]
[EndTime "11:29:53 PST"]
[Termination "Piacramling won by resignation"]

1. d4 {[%clk 0:03:00.9]} 1... Nf6 {[%clk 0:02:59.8]} 2. c4 {[%clk 0:03:00.9]}
2... e6 {[%clk 0:02:59.7]} 3. Nc3 {[%clk 0:03:00.3]} 3... d5 {[%clk 0:02:57.7]}
4. Bg5 {[%clk 0:02:52.7]} 4... Be7 {[%clk 0:02:56.9]} 5. e3 {[%clk 0:02:52.4]}
5... O-O {[%clk 0:02:56]} 6. Nf3 {[%clk 0:02:45.6]} 6... h6 {[%clk 0:02:55.8]}
7. Bxf6 {[%clk 0:02:44.1]} 7... Bxf6 {[%clk 0:02:55.6]} 8. Qc2 {[%clk
0:02:42.9]} 8... c5 {[%clk 0:02:51.8]} 9. dxc5 {[%clk 0:02:29.6]} 9... dxc4
{[%clk 0:02:50.2]} 10. Bxc4 {[%clk 0:02:25.3]} 10... Nd7 {[%clk 0:02:50.1]} 11.
c6 {[%clk 0:02:23.9]} 11... Nb6 {[%clk 0:02:43.6]} 12. Be2 {[%clk 0:02:14.7]}
12... bxc6 {[%clk 0:02:39.4]} 13. O-O {[%clk 0:02:12.6]} 13... Bb7 {[%clk
0:02:27.4]} 14. Ne4 {[%clk 0:02:10.2]} 14... Be7 {[%clk 0:02:22.3]} 15. Nc5
{[%clk 0:02:01.6]} 15... Qc7 {[%clk 0:02:11.2]} 16. Rac1 {[%clk 0:01:57.4]}
16... Rfc8 {[%clk 0:01:58.9]} 17. Nd4 {[%clk 0:01:55.8]} 17... Bd6 {[%clk
0:01:44.5]} 18. g3 {[%clk 0:01:51.3]} 18... Nd5 {[%clk 0:01:32.4]} 19. Bf3
{[%clk 0:01:25.3]} 19... Rab8 {[%clk 0:01:29.9]} 20. a3 {[%clk 0:01:21.5]} 20...
Qb6 {[%clk 0:01:21.4]} 21. b4 {[%clk 0:01:08.3]} 21... Rc7 {[%clk 0:00:59]} 22.
Na4 {[%clk 0:00:57.6]} 22... Nxb4 {[%clk 0:00:39.1]} 23. axb4 {[%clk 0:00:54]}
23... Qxb4 {[%clk 0:00:39.4]} 24. Nc5 {[%clk 0:00:43]} 24... Bc8 {[%clk
0:00:26.1]} 25. Rb1 {[%clk 0:00:37]} 25... Bxc5 {[%clk 0:00:26.4]} 26. Rxb4
{[%clk 0:00:33.3]} 26... Bxb4 {[%clk 0:00:26.7]} 27. Nxc6 {[%clk 0:00:28]} 27...
Rb6 {[%clk 0:00:19.6]} 28. Qa4 {[%clk 0:00:13.3]} 28... a5 {[%clk 0:00:18.5]}
29. Nxb4 {[%clk 0:00:11.9]} 29... axb4 {[%clk 0:00:17.8]} 30. Rb1 {[%clk
0:00:08.6]} 30... Ba6 {[%clk 0:00:14.3]} 31. Qa5 {[%clk 0:00:07.9]} 31... Rcb7
{[%clk 0:00:14]} 32. Bxb7 {[%clk 0:00:06.7]} 32... Rxb7 {[%clk 0:00:09.9]} 33.
Qxa6 {[%clk 0:00:06.8]} 33... Rb8 {[%clk 0:00:10.8]} 34. Qa5 {[%clk 0:00:06.5]}
34... b3 {[%clk 0:00:11.2]} 35. Qa3 {[%clk 0:00:06.5]} 35... Ra8 {[%clk
0:00:11]} 36. Qxa8+ {[%clk 0:00:03.9]} 1-0

[Event "*** Titled Tuesday Blitz"]
[Site "Chess.com"]
[Date "2021.03.02"]
[Round "8"]
[White "Fiona"]
[Black "c_r_e_e_p_e_r"]
[Result "0-1"]
[WhiteElo "2268"]
[BlackElo "2420"]
[TimeControl "180+1"]
[EndTime "11:29:53 PST"]
[Termination "c_r_e_e_p_e_r won by resignation"]

1. e4 {[%clk 0:03:00.9]} 1... c5 {[%clk 0:03:00.2]} 2. Nc3 {[%clk 0:03:00.4]}
2... e6 {[%clk 0:03:00]} 3. f4 {[%clk 0:02:59.4]} 3... d5 {[%clk 0:02:59.8]} 4.
Nf3 {[%clk 0:03:00.1]} 4... dxe4 {[%clk 0:02:57.3]} 5. Nxe4 {[%clk 0:02:59.5]}
5... Nd7 {[%clk 0:02:57.5]} 6. Bc4 {[%clk 0:02:51.2]} 6... a6 {[%clk 0:02:56.5]}
7. a4 {[%clk 0:02:51.2]} 7... b6 {[%clk 0:02:56.4]} 8. d3 {[%clk 0:02:50.8]}
8... Bb7 {[%clk 0:02:56.4]} 9. O-O {[%clk 0:02:50.5]} 9... Ngf6 {[%clk
0:02:56.9]} 10. Qe1 {[%clk 0:02:47.3]} 10... Be7 {[%clk 0:02:53.1]} 11. Kh1
{[%clk 0:02:39.7]} 11... O-O {[%clk 0:02:51.1]} 12. Ne5 {[%clk 0:02:40]} 12...
Nxe4 {[%clk 0:02:26.4]} 13. Nxd7 {[%clk 0:02:36]} 13... Qxd7 {[%clk 0:02:21]}
14. dxe4 {[%clk 0:02:36.5]} 14... b5 {[%clk 0:02:20.3]} 15. axb5 {[%clk
0:02:29.6]} 15... axb5 {[%clk 0:02:21.2]} 16. Ba2 {[%clk 0:02:17.2]} 16... Qd4
{[%clk 0:01:51.9]} 17. e5 {[%clk 0:01:55.2]} 17... Bd5 {[%clk 0:01:36.4]} 18.
Be3 {[%clk 0:01:35.1]} 18... Qxb2 {[%clk 0:01:34.6]} 19. Bxd5 {[%clk 0:01:33.8]}
19... Rxa1 {[%clk 0:01:28.1]} 20. Qxa1 {[%clk 0:01:34.7]} 20... Qxa1 {[%clk
0:01:28.5]} 21. Rxa1 {[%clk 0:01:35.6]} 21... exd5 {[%clk 0:01:28.9]} 22. Ra7
{[%clk 0:01:33.2]} 22... Re8 {[%clk 0:01:14.1]} 23. Kg1 {[%clk 0:01:29]} 23...
d4 {[%clk 0:01:05.7]} 24. Bd2 {[%clk 0:01:29.1]} 24... c4 {[%clk 0:00:59.9]} 25.
Kf1 {[%clk 0:01:15.9]} 25... c3 {[%clk 0:00:56]} 26. Be1 {[%clk 0:01:14.1]}
26... b4 {[%clk 0:00:51.9]} 27. Ke2 {[%clk 0:01:01.8]} 27... f6 {[%clk
0:00:38.5]} 28. Kd3 {[%clk 0:00:51.1]} 28... fxe5 {[%clk 0:00:36.1]} 29. fxe5
{[%clk 0:00:52]} 29... Bc5 {[%clk 0:00:36.1]} 30. Rc7 {[%clk 0:00:44.2]} 30...
Rxe5 {[%clk 0:00:34.6]} 31. Bg3 {[%clk 0:00:44.8]} 31... Re3+ {[%clk 0:00:28.2]}
32. Kc4 {[%clk 0:00:45.1]} 32... d3 {[%clk 0:00:18.3]} 33. cxd3 {[%clk
0:00:21.3]} 33... c2 {[%clk 0:00:17.9]} 34. Rxc5 {[%clk 0:00:18.9]} 34... c1=Q+
{[%clk 0:00:17.4]} 35. Kb5 {[%clk 0:00:19.6]} 35... Qa3 {[%clk 0:00:12.5]} 36.
Rc8+ {[%clk 0:00:15]} 36... Kf7 {[%clk 0:00:12.7]} 37. Rc7+ {[%clk 0:00:15.9]}
37... Re7 {[%clk 0:00:12]} 38. Rc4 {[%clk 0:00:13.4]} 38... Qxd3 {[%clk
0:00:11.6]} 39. Bd6 {[%clk 0:00:12.4]} 39... Qxd6 {[%clk 0:00:10.2]} 0-1

[Event "*** Titled Tuesday Blitz"]
[Site "Chess.com"]
[Date "2021.03.02"]
[Round "8"]
[White "paulrusan"]
[Black "ehrenfeld"]
[Result "1-0"]
[WhiteElo "2341"]
[BlackElo "2476"]
[TimeControl "180+1"]
[EndTime "11:29:54 PST"]
[Termination "paulrusan won by resignation"]

1. e4 {[%clk 0:01:31.3]} 1... e5 {[%clk 0:02:59.6]} 2. Nf3 {[%clk 0:01:30.9]}
2... Nc6 {[%clk 0:02:59.6]} 3. Bc4 {[%clk 0:01:30.9]} 3... Nf6 {[%clk
0:02:58.8]} 4. d3 {[%clk 0:01:31]} 4... Bc5 {[%clk 0:02:58.2]} 5. O-O {[%clk
0:01:30.6]} 5... d6 {[%clk 0:02:58.2]} 6. a4 {[%clk 0:01:30.5]} 6... a6 {[%clk
0:02:57.9]} 7. h3 {[%clk 0:01:30.6]} 7... Ba7 {[%clk 0:02:56.7]} 8. c3 {[%clk
0:01:30.9]} 8... O-O {[%clk 0:02:47.9]} 9. Bg5 {[%clk 0:01:30.1]} 9... h6 {[%clk
0:02:43.9]} 10. Bh4 {[%clk 0:01:30.3]} 10... g5 {[%clk 0:02:39.4]} 11. Nxg5
{[%clk 0:01:30.4]} 11... hxg5 {[%clk 0:02:39.3]} 12. Bxg5 {[%clk 0:01:30.6]}
12... Kg7 {[%clk 0:02:32.9]} 13. Qf3 {[%clk 0:01:28.9]} 13... Be6 {[%clk
0:02:22.8]} 14. Na3 {[%clk 0:01:28.1]} 14... Nb8 {[%clk 0:02:19]} 15. Rad1
{[%clk 0:01:20.8]} 15... Nbd7 {[%clk 0:02:18.4]} 16. d4 {[%clk 0:01:21.2]} 16...
Bxc4 {[%clk 0:01:48.9]} 17. Nxc4 {[%clk 0:01:19.9]} 17... exd4 {[%clk 0:01:47]}
18. cxd4 {[%clk 0:01:19.3]} 18... Qe8 {[%clk 0:01:42.4]} 19. e5 {[%clk
0:01:09.5]} 19... Nh7 {[%clk 0:01:34.2]} 20. Qg4 {[%clk 0:00:45.6]} 20... Kh8
{[%clk 0:01:30.9]} 21. Rfe1 {[%clk 0:00:32.7]} 21... d5 {[%clk 0:01:25.4]} 22.
Ne3 {[%clk 0:00:31.7]} 22... Qe6 {[%clk 0:01:23.9]} 23. Nf5 {[%clk 0:00:30.8]}
23... Rg8 {[%clk 0:01:23.2]} 24. h4 {[%clk 0:00:30.7]} 24... Rg6 {[%clk
0:01:14.2]} 25. f4 {[%clk 0:00:28]} 25... Rag8 {[%clk 0:01:08.5]} 26. Ne3 {[%clk
0:00:26.1]} 26... Qxg4 {[%clk 0:01:07.7]} 27. Nxg4 {[%clk 0:00:25.9]} 27... c6
{[%clk 0:01:05.3]} 28. f5 {[%clk 0:00:25.6]} 28... Rxg5 {[%clk 0:01:05.3]} 29.
hxg5 {[%clk 0:00:25.5]} 29... Rxg5 {[%clk 0:01:05.4]} 30. Ne3 {[%clk 0:00:22.4]}
30... Kg7 {[%clk 0:00:59.8]} 31. a5 {[%clk 0:00:21.9]} 31... Nhf8 {[%clk
0:00:58.3]} 32. b4 {[%clk 0:00:21.8]} 32... b6 {[%clk 0:00:50.6]} 33. axb6
{[%clk 0:00:19.7]} 33... Bxb6 {[%clk 0:00:50.3]} 34. Kf2 {[%clk 0:00:20.2]}
34... a5 {[%clk 0:00:45.5]} 35. bxa5 {[%clk 0:00:20]} 35... Bxa5 {[%clk
0:00:45.3]} 36. Rh1 {[%clk 0:00:18.6]} 36... Bb6 {[%clk 0:00:44.8]} 37. Kf3
{[%clk 0:00:18.3]} 37... c5 {[%clk 0:00:43]} 38. g4 {[%clk 0:00:15.4]} 38...
cxd4 {[%clk 0:00:42.5]} 39. Nxd5 {[%clk 0:00:15.6]} 39... Nxe5+ {[%clk
0:00:40.9]} 40. Kf4 {[%clk 0:00:15.2]} 40... Rxg4+ {[%clk 0:00:40.9]} 41. Kxe5
{[%clk 0:00:15]} 41... Ba7 {[%clk 0:00:38]} 42. Rhg1 {[%clk 0:00:14.8]} 42...
Rxg1 {[%clk 0:00:32.1]} 43. Rxg1+ {[%clk 0:00:14.7]} 43... Kh6 {[%clk
0:00:31.1]} 44. Nf6 {[%clk 0:00:12.9]} 1-0